fUST/lending_fUST_20250920
["ID","MTS","AMOUNT","RATE_DAILY","PERIOD"]
[386488305,1758318656576,-480.0,0.00022492,2]
[386488306,1758318656585,-7422.04,0.00022492,2]
[386488307,1758318656595,-480.0,0.00022492,2]
[386488308,1758318656604,-845.13,0.00022492,2]
[386488309,1758318656614,-480.0,0.00022494,2]
[386488310,1758318656623,-500.0,0.00022621,2]
[386488311,1758318656632,-500.0,0.00022621,2]
[386488312,1758318656643,-160.0,0.00022754,2]
[386488313,1758318656652,-480.0,0.00022758,2]
[386488314,1758318656662,-387.3,0.00022758,2]
[386488315,1758318656672,-1464.5,0.00022758,2]
[386488316,1758318656682,-480.0,0.00022758,2]
[386488317,1758318656692,-480.0,0.00022758,2]
[386488318,1758318656703,-828.53,0.00022758,2]
[386488319,1758318656713,-910.34,0.00022758,2]
[386488320,1758318656723,-480.0,0.00022758,2]
[386488321,1758318656733,-480.0,0.00022758,2]
[386488322,1758318656742,-480.0,0.00022758,2]
[386488323,1758318656751,-214.09490122,0.00022758,2]
[386488324,1758318656761,-480.0,0.00022758,2]
[386488325,1758318656772,-480.0,0.00022758,2]
[386488326,1758318656782,-480.0,0.00022758,2]
[386488327,1758318656792,-708.79,0.00022758,2]
[386488328,1758318656803,-480.0,0.00022758,2]
[386488329,1758318656812,-581.65,0.00022758,2]
[386488330,1758318656823,-264.03,0.00022758,2]
[386488331,1758318656835,-480.0,0.00022758,2]
[386488332,1758318656845,-2031.76,0.00022758,2]
[386488333,1758318656854,-480.0,0.00022758,2]
[386488334,1758318656866,-480.0,0.00022758,2]
[386488335,1758318656878,-480.0,0.00022759,2]
[386488336,1758318656888,-480.0,0.00022759,2]
[386488337,1758318656898,-480.0,0.00022759,2]
[386488338,1758318656907,-480.0,0.00022759,2]
[386488339,1758318656918,-480.0,0.00022759,2]
[386488340,1758318656928,-317.02128549,0.00022759,2]
[386488341,1758318656937,-480.0,0.00022759,2]
[386488342,1758318656947,-480.0,0.00022759,2]
[386488343,1758318656956,-480.0,0.00022759,2]
[386488344,1758318656965,-577.64,0.00022759,2]
[386488345,1758318656974,-480.0,0.00022759,2]
[386488346,1758318656983,-480.0,0.00022759,2]
[386488347,1758318656992,-480.0,0.00022759,2]
[386488348,1758318657001,-480.0,0.00022759,2]
[386488349,1758318657011,-480.0,0.00022759,2]
[386488350,1758318657020,-480.0,0.00022759,2]
[386488351,1758318657029,-480.0,0.00022759,2]
[386488352,1758318657038,-640.26,0.00022759,2]
[386488353,1758318657047,-480.0,0.00022759,2]
[386488354,1758318657056,-480.0,0.00022759,2]
[386488355,1758318657065,-544.1,0.00022759,2]
[386488356,1758318657074,-480.0,0.00022759,2]
[386488357,1758318657083,-480.0,0.00022759,2]
[386488358,1758318657093,-480.0,0.00022759,2]
[386488359,1758318657102,-480.0,0.00022759,2]
[386488360,1758318657111,-480.0,0.00022759,2]
[386488361,1758318657120,-480.0,0.00022759,2]
[386488362,1758318657130,-442.19906303,0.00022759,2]
[386488363,1758318657140,-480.0,0.00022759,2]
[386488364,1758318657149,-480.0,0.00022759,2]
[386488365,1758318657158,-480.0,0.00022759,2]
[386488366,1758318657168,-480.0,0.00022759,2]
[386488367,1758318657178,-523.81773233,0.00022759,2]
[386488368,1758318657249,-480.0,0.00022759,2]
[386488369,1758318657260,-661.51,0.00022759,2]
[386488370,1758318657269,-685.81,0.00022759,2]
[386488371,1758318657279,-480.0,0.00022759,2]
[386488372,1758318657288,-480.0,0.00022759,2]
[386488373,1758318657297,-480.0,0.00022759,2]
[386488374,1758318657307,-480.0,0.0002276,2]
[386488375,1758318657317,-480.0,0.0002276,2]
[386488376,1758318657328,-480.0,0.0002276,2]
[386488377,1758318657338,-480.0,0.0002276,2]
[386488378,1758318657348,-480.0,0.0002276,2]
[386488379,1758318657359,-480.0,0.0002276,2]
[386488380,1758318657369,-480.0,0.0002276,2]
[386488381,1758318657381,-480.0,0.0002276,2]
[386488382,1758318657390,-480.0,0.0002276,2]
[386488383,1758318657399,-552.91,0.0002276,2]
[386488384,1758318657409,-480.0,0.0002276,2]
[386488385,1758318657418,-480.0,0.0002276,2]
[386488386,1758318657427,-480.0,0.0002276,2]
[386488387,1758318657436,-480.0,0.0002276,2]
[386488388,1758318657446,-480.0,0.0002276,2]
[386488389,1758318657455,-412.73460602,0.0002276,2]
[386488390,1758318657465,-480.0,0.0002276,2]
[386488391,1758318657474,-480.0,0.0002276,2]
[386488392,1758318657483,-1682.0,0.0002276,2]
[386488393,1758318657492,-480.0,0.0002276,2]
[386488394,1758318657502,-480.0,0.0002276,2]
[386488395,1758318657511,-480.0,0.0002276,2]
[386488396,1758318657520,-671.17,0.0002276,2]
[386488397,1758318657530,-480.0,0.0002276,2]
[386488398,1758318657539,-480.0,0.0002276,2]
[386488399,1758318657549,-480.0,0.0002276,2]
[386488400,1758318657558,-480.0,0.0002276,2]
[386488401,1758318657567,-480.0,0.0002276,2]
[386488402,1758318657577,-480.0,0.0002276,2]
[386488403,1758318657586,-1665.18,0.0002276,2]
[386488404,1758318657595,-480.0,0.0002276,2]
[386488405,1758318657605,-480.0,0.0002276,2]
[386488406,1758318657614,-480.0,0.0002276,2]
[386488407,1758318657624,-618.42,0.0002276,2]
[386488408,1758318657633,-480.0,0.0002276,2]
[386488409,1758318657643,-480.0,0.00022761,2]
[386488410,1758318657652,-499.51688772,0.00022761,2]
[386488411,1758318657661,-480.0,0.00022761,2]
[386488412,1758318657670,-480.0,0.00022761,2]
[386488413,1758318657680,-480.0,0.00022761,2]
[386488414,1758318657689,-480.0,0.00022761,2]
[386488415,1758318657698,-480.0,0.00022761,2]
[386488416,1758318657707,-480.0,0.00022761,2]
[386488417,1758318657716,-480.0,0.00022761,2]
[386488418,1758318657727,-480.0,0.00022761,2]
[386488419,1758318657736,-495.99,0.00022761,2]
[386488420,1758318657745,-480.0,0.00022761,2]
[386488421,1758318657755,-480.0,0.00022761,2]
[386488422,1758318657764,-480.0,0.00022761,2]
[386488423,1758318657773,-272.16584108,0.00022761,2]
[386488424,1758318657783,-480.0,0.00022761,2]
[386488425,1758318657792,-480.0,0.00022761,2]
[386488426,1758318657801,-480.0,0.00022761,2]
[386488427,1758318657810,-480.0,0.00022761,2]
[386488428,1758318657818,-480.0,0.00022761,2]
[386488429,1758318657827,-480.0,0.00022761,2]
[386488430,1758318657836,-480.0,0.00022761,2]
[386488431,1758318657845,-480.0,0.00022761,2]
[386488432,1758318657854,-480.0,0.00022761,2]
[386488433,1758318657863,-480.0,0.00022761,2]
[386488434,1758318657873,-480.0,0.00022761,2]
[386488435,1758318657882,-594.82795512,0.00022761,2]
[386488436,1758318657891,-480.0,0.00022761,2]
[386488437,1758318657900,-480.0,0.00022761,2]
[386488439,1758318657909,-480.0,0.00022761,2]
[386488440,1758318657919,-480.0,0.00022761,2]
[386488441,1758318657928,-480.0,0.00022761,2]
[386488442,1758318657939,-480.0,0.00022761,2]
[386488443,1758318657949,-480.0,0.00022761,2]
[386488444,1758318657958,-480.0,0.00022762,2]
[386488445,1758318657968,-480.0,0.00022762,2]
[386488446,1758318657977,-480.0,0.00022762,2]
[386488447,1758318657986,-3891.72,0.00022762,2]
[386488448,1758318657995,-684.87,0.00022763,2]
[386488449,1758318658005,-480.0,0.00022764,2]
[386488450,1758318658014,-480.0,0.00022764,2]
[386488451,1758318658024,-520.00070603,0.00022764,2]
[386488452,1758318658033,-480.0,0.00022764,2]
[386488453,1758318658042,-480.0,0.00022764,2]
[386488454,1758318658052,-480.0,0.00022764,2]
[386488455,1758318658061,-480.0,0.00022764,2]
[386488456,1758318658071,-480.0,0.00022764,2]
[386488457,1758318658080,-480.0,0.00022764,2]
[386488458,1758318658089,-480.0,0.00022764,2]
[386488459,1758318658098,-480.0,0.00022764,2]
[386488460,1758318658108,-480.0,0.00022764,2]
[386488461,1758318658117,-1633.36730419,0.00022765,2]
[386488462,1758318658126,-1773.07,0.00022766,2]
[386488463,1758318658136,-574.86,0.00022766,2]
[386488464,1758318658145,-480.0,0.00022766,2]
[386488465,1758318658155,-480.0,0.00022766,2]
[386488466,1758318658164,-7422.04,0.00022766,2]
[386488467,1758318658173,-480.0,0.00022766,2]
[386488468,1758318658183,-845.13,0.00022766,2]
[386488469,1758318658192,-480.0,0.00022768,2]
[386488470,1758318658201,-500.0,0.00022774,2]
[386488471,1758318658211,-500.0,0.00022774,2]
[386488472,1758318658220,-420.0,0.00022964,2]
[386488473,1758318658230,-578.28031505,0.00022979,2]
[386488474,1758318658239,-151.0,0.00023,7]
[386488475,1758318658249,-233.43972884,0.00023,2]
[386488476,1758318658259,-160.0,0.00023,2]
[386488477,1758318658268,-848.13460282,0.00023,2]
[386488478,1758318658339,-160.0,0.00023,2]
[386488479,1758318658349,-217.99592756,0.00023,2]
[386488480,1758318658359,-160.0,0.00023,2]
[386488481,1758318658369,-946.0,0.00023,2]
[386488482,1758318658379,-480.0,0.00023032,2]
[386488483,1758318658389,-1464.5,0.00023032,2]
[386488484,1758318658399,-480.0,0.00023032,2]
[386488485,1758318658410,-828.53,0.00023032,2]
[386488486,1758318658420,-910.34,0.00023032,2]
[386488487,1758318658430,-480.0,0.00023032,2]
[386488488,1758318658439,-480.0,0.00023032,2]
[386488489,1758318658448,-480.0,0.00023032,2]
[386488490,1758318658458,-480.0,0.00023032,2]
[386488491,1758318658468,-480.0,0.00023032,2]
[386488492,1758318658478,-708.79,0.00023032,2]
[386488493,1758318658487,-480.0,0.00023032,2]
[386488494,1758318658497,-581.65,0.00023032,2]
[386488495,1758318658506,-495.66,0.00023032,2]
[386488496,1758318658515,-2031.76,0.00023032,2]
[386488497,1758318658525,-480.0,0.00023032,2]
[386488498,1758318658534,-480.0,0.00023033,2]
[386488499,1758318658543,-480.0,0.00023033,2]
[386488500,1758318658553,-480.0,0.00023033,2]
[386488501,1758318658562,-480.0,0.00023033,2]
[386488502,1758318658571,-480.0,0.00023033,2]
[386488503,1758318658580,-480.0,0.00023033,2]
[386488504,1758318658589,-480.0,0.00023033,2]
[386488505,1758318658599,-480.0,0.00023033,2]
[386488506,1758318658608,-418.37,0.00023033,2]
[386488507,1758318658617,-640.26,0.00023033,2]
[386488508,1758318658626,-480.0,0.00023033,2]
[386488509,1758318658635,-480.0,0.00023033,2]
[386488510,1758318658644,-480.0,0.00023033,2]
[386488511,1758318658653,-480.0,0.00023033,2]
[386488512,1758318658663,-480.0,0.00023033,2]
[386488513,1758318658672,-480.0,0.00023033,2]
[386488514,1758318658683,-480.0,0.00023033,2]
[386488515,1758318658695,-480.0,0.00023033,2]
[386488516,1758318658706,-480.0,0.00023033,2]
[386488517,1758318658716,-480.0,0.00023033,2]
[386488518,1758318658725,-480.0,0.00023033,2]
[386488519,1758318658735,-661.51,0.00023033,2]
[386488520,1758318658744,-685.81,0.00023033,2]
[386488521,1758318658753,-480.0,0.00023033,2]
[386488522,1758318658762,-480.0,0.00023033,2]
[386488523,1758318658771,-480.0,0.00023034,2]
[386488524,1758318658781,-480.0,0.00023034,2]
[386488525,1758318658790,-480.0,0.00023034,2]
[386488526,1758318658799,-480.0,0.00023034,2]
[386488527,1758318658808,-480.0,0.00023034,2]
[386488528,1758318658821,-480.0,0.00023034,2]
[386488529,1758318658842,-480.0,0.00023034,2]
[386488530,1758318658858,-480.0,0.00023034,2]
[386488531,1758318658877,-552.91,0.00023034,2]
[386488532,1758318658897,-609.37241845,0.00023034,2]
[386488533,1758318658916,-515.2,0.00023034,2]
[386488534,1758318658933,-480.0,0.00023034,2]
[386488535,1758318658951,-517.35235303,0.00023034,2]
[386488536,1758318658966,-480.0,0.00023034,2]
[386488537,1758318658985,-1682.0,0.00023034,2]
[386488538,1758318659003,-480.0,0.00023034,2]
[386488539,1758318659020,-480.0,0.00023034,2]
[386488540,1758318659033,-480.0,0.00023034,2]
[386488541,1758318659053,-671.17,0.00023034,2]
[386488542,1758318659067,-480.0,0.00023034,2]
[386488543,1758318659085,-480.0,0.00023034,2]
[386488544,1758318659099,-480.0,0.00023034,2]
[386488545,1758318659115,-480.0,0.00023034,2]
[386488546,1758318659128,-480.0,0.00023034,2]
[386488547,1758318659144,-1665.18,0.00023034,2]
[386488548,1758318659159,-480.0,0.00023034,2]
[386488549,1758318659173,-480.0,0.00023034,2]
[386488550,1758318659187,-480.0,0.00023034,2]
[386488551,1758318659201,-480.0,0.00023035,2]
[386488552,1758318659216,-480.0,0.00023035,2]
[386488553,1758318659231,-480.0,0.00023035,2]
[386488554,1758318659245,-480.0,0.00023035,2]
[386488555,1758318659260,-480.0,0.00023035,2]
[386488556,1758318659275,-480.0,0.00023035,2]
[386488557,1758318659288,-480.0,0.00023035,2]
[386488558,1758318659303,-480.0,0.00023035,2]
[386488559,1758318659317,-480.0,0.00023035,2]
[386488560,1758318659334,-480.0,0.00023035,2]
[386488561,1758318659347,-480.0,0.00023035,2]
[386488562,1758318659363,-480.0,0.00023035,2]
[386488563,1758318659376,-480.0,0.00023035,2]
[386488564,1758318659390,-480.0,0.00023035,2]
[386488565,1758318659405,-480.0,0.00023035,2]
[386488566,1758318659420,-480.0,0.00023035,2]
[386488567,1758318659435,-480.0,0.00023035,2]
[386488568,1758318659451,-480.0,0.00023035,2]
[386488569,1758318659466,-480.0,0.00023035,2]
[386488570,1758318659479,-480.0,0.00023035,2]
[386488571,1758318659493,-480.0,0.00023035,2]
[386488572,1758318659507,-480.0,0.00023035,2]
[386488573,1758318659521,-480.0,0.00023036,2]
[386488574,1758318659535,-3891.72,0.00023036,2]
[386488575,1758318659548,-684.87,0.00023037,2]
[386488576,1758318659558,-480.0,0.00023038,2]
[386488577,1758318659567,-549.37563895,0.00023038,2]
[386488578,1758318659676,-480.0,0.00023038,2]
[386488579,1758318659689,-480.0,0.00023038,2]
[386488580,1758318659698,-480.0,0.00023038,2]
[386488581,1758318659707,-480.0,0.00023038,2]
[386488582,1758318659717,-480.0,0.00023038,2]
[386488583,1758318659726,-480.0,0.00023038,2]
[386488584,1758318659735,-480.0,0.00023038,2]
[386488585,1758318659744,-500.0,0.0002304,10]
[386488586,1758318659753,-500.0,0.0002304,2]
[386488587,1758318659763,-500.0,0.0002304,2]
[386488588,1758318659772,-500.0,0.0002304,10]
[386488589,1758318659781,-409.99637636,0.0002304,2]
[386488590,1758318659791,-500.0,0.0002304,10]
[386488591,1758318659800,-1773.07,0.0002304,2]
[386488592,1758318659809,-574.86,0.0002304,2]
[386488593,1758318659819,-480.0,0.0002304,2]
[386488594,1758318659828,-480.0,0.0002304,2]
[386488595,1758318659837,-7422.04,0.0002304,2]
[386488596,1758318659847,-480.0,0.0002304,2]
[386488597,1758318659856,-845.13,0.0002304,2]
[386488598,1758318659865,-480.0,0.00023042,2]
[386488599,1758318659875,-500.0,0.00023048,2]
[386488600,1758318659884,-500.0,0.00023048,2]
[386488601,1758318659894,-4098.65939381,0.00023061,2]
[386488602,1758318659903,-661.80611035,0.00023286,2]
[386488603,1758318659912,-260.0,0.00023302,2]
[386488604,1758318659924,-1464.5,0.00023306,2]
[386488605,1758318659934,-480.0,0.00023306,2]
[386488606,1758318659946,-828.53,0.00023306,2]
[386488607,1758318659956,-910.34,0.00023306,2]
[386488608,1758318659966,-480.0,0.00023306,2]
[386488609,1758318659975,-536.55,0.00023306,2]
[386488610,1758318659985,-480.0,0.00023306,2]
[386488611,1758318659994,-480.0,0.00023306,2]
[386488612,1758318660004,-480.0,0.00023306,2]
[386488613,1758318660014,-708.79,0.00023306,2]
[386488614,1758318660023,-480.0,0.00023306,2]
[386488615,1758318660032,-581.65,0.00023306,2]
[386488616,1758318660042,-2031.76,0.00023306,2]
[386488617,1758318660052,-480.0,0.00023306,2]
[386488618,1758318660062,-480.0,0.00023307,2]
[386488619,1758318660071,-480.0,0.00023307,2]
[386488620,1758318660081,-480.0,0.00023307,2]
[386488621,1758318660090,-480.0,0.00023307,2]
[386488622,1758318660100,-480.0,0.00023307,2]
[386488623,1758318660109,-444.1,0.00023307,2]
[386488624,1758318660119,-480.0,0.00023307,2]
[386488625,1758318660128,-480.0,0.00023307,2]
[386488626,1758318660137,-640.26,0.00023307,2]
[386488627,1758318660147,-480.0,0.00023307,2]
[386488628,1758318660157,-480.0,0.00023307,2]
[386488629,1758318660168,-480.0,0.00023307,2]
[386488630,1758318660178,-480.0,0.00023307,2]
[386488631,1758318660189,-480.0,0.00023307,2]
[386488632,1758318660198,-480.0,0.00023307,2]
[386488633,1758318660209,-480.0,0.00023307,2]
[386488634,1758318660218,-480.0,0.00023307,2]
[386488635,1758318660228,-480.0,0.00023307,2]
[386488636,1758318660238,-480.0,0.00023307,2]
[386488637,1758318660247,-480.0,0.00023307,2]
[386488638,1758318660258,-661.51,0.00023307,2]
[386488639,1758318660267,-685.81,0.00023307,2]
[386488640,1758318660276,-480.0,0.00023307,2]
[386488641,1758318660286,-480.0,0.00023307,2]
[386488642,1758318660295,-480.0,0.00023308,2]
[386488643,1758318660304,-480.0,0.00023308,2]
[386488644,1758318660314,-480.0,0.00023308,2]
[386488645,1758318660327,-480.0,0.00023308,2]
[386488646,1758318660337,-480.0,0.00023308,2]
[386488647,1758318660346,-480.0,0.00023308,2]
[386488648,1758318660355,-280.5,0.00023308,2]
[386488649,1758318660365,-552.91,0.00023308,2]
[386488650,1758318660375,-1682.0,0.00023308,2]
[386488651,1758318660386,-205.42497926,0.00023308,2]
[386488652,1758318660399,-363.82,0.00023308,2]
[386488653,1758318660408,-480.0,0.00023308,2]
[386488654,1758318660418,-671.17,0.00023308,2]
[386488655,1758318660428,-480.0,0.00023308,2]
[386488656,1758318660437,-480.0,0.00023308,2]
[386488657,1758318660446,-480.0,0.00023308,2]
[386488658,1758318660455,-1665.18,0.00023308,2]
[386488659,1758318660464,-480.0,0.00023308,2]
[386488660,1758318660474,-480.0,0.00023308,2]
[386488661,1758318660483,-480.0,0.00023308,2]
[386488662,1758318660492,-480.0,0.00023309,2]
[386488663,1758318660502,-480.0,0.00023309,2]
[386488664,1758318660512,-480.0,0.00023309,2]
[386488665,1758318660522,-584.53362185,0.00023309,2]
[386488666,1758318660532,-480.0,0.00023309,2]
[386488667,1758318660543,-454.94024276,0.00023309,2]
[386488668,1758318660553,-480.0,0.00023309,2]
[386488669,1758318660564,-480.0,0.00023309,2]
[386488670,1758318660573,-480.0,0.00023309,2]
[386488671,1758318660582,-600.63803769,0.00023309,2]
[386488672,1758318660595,-480.0,0.00023309,2]
[386488673,1758318660606,-608.6,0.00023309,2]
[386488674,1758318660616,-480.0,0.00023309,2]
[386488675,1758318660628,-480.0,0.00023309,2]
[386488676,1758318660639,-480.0,0.00023309,2]
[386488677,1758318660648,-3891.72,0.0002331,2]
[386488678,1758318660659,-684.87,0.00023311,2]
[386488679,1758318660668,-480.0,0.00023312,2]
[386488680,1758318660677,-480.0,0.00023312,2]
[386488681,1758318660687,-480.0,0.00023312,2]
[386488682,1758318660696,-480.0,0.00023312,2]
[386488683,1758318660705,-405.65358611,0.00023312,2]
[386488684,1758318660714,-300.0,0.00023313,2]
[386488685,1758318660723,-1773.07,0.00023314,2]
[386488686,1758318660732,-574.86,0.00023314,2]
[386488687,1758318660741,-480.0,0.00023314,2]
[386488688,1758318660751,-221.65734075,0.00023314,2]
[386488689,1758318660761,-7422.04,0.00023314,2]
[386488690,1758318660771,-480.0,0.00023314,2]
[386488691,1758318660780,-845.13,0.00023314,2]
[386488692,1758318660789,-480.0,0.00023316,2]
[386488693,1758318660799,-500.0,0.00023322,2]
[386488694,1758318660809,-500.0,0.00023322,2]
[386488695,1758318660818,-1000.0,0.000235,2]
[386488696,1758318660827,-151.0,0.000235,8]
[386488697,1758318660836,-1464.5,0.0002358,2]
[386488698,1758318660845,-480.0,0.0002358,2]
[386488699,1758318660855,-828.53,0.0002358,2]
[386488700,1758318660865,-910.34,0.0002358,2]
[386488701,1758318660874,-522.28,0.0002358,2]
[386488702,1758318660883,-480.0,0.0002358,2]
[386488703,1758318660893,-480.0,0.0002358,2]
[386488704,1758318660902,-480.0,0.0002358,2]
[386488705,1758318660911,-708.79,0.0002358,2]
[386488706,1758318660920,-480.0,0.0002358,2]
[386488707,1758318660930,-581.65,0.0002358,2]
[386488708,1758318660939,-2031.76,0.0002358,2]
[386488709,1758318660949,-480.0,0.0002358,2]
[386488710,1758318660958,-480.0,0.00023581,2]
[386488711,1758318660967,-480.0,0.00023581,2]
[386488712,1758318660976,-357.91,0.00023581,2]
[386488713,1758318660985,-480.0,0.00023581,2]
[386488714,1758318660995,-480.0,0.00023581,2]
[386488715,1758318661004,-480.0,0.00023581,2]
[386488716,1758318661014,-480.0,0.00023581,2]
[386488717,1758318661023,-640.26,0.00023581,2]
[386488718,1758318661032,-193.64317892,0.00023581,2]
[386488719,1758318661041,-480.0,0.00023581,2]
[386488720,1758318661050,-480.0,0.00023581,2]
[386488721,1758318661059,-480.0,0.00023581,2]
[386488722,1758318661068,-480.0,0.00023581,2]
[386488723,1758318661077,-480.0,0.00023581,2]
[386488724,1758318661087,-480.0,0.00023581,2]
[386488725,1758318661096,-480.0,0.00023581,2]
[386488726,1758318661106,-480.0,0.00023581,2]
[386488727,1758318661116,-480.0,0.00023581,2]
[386488728,1758318661125,-480.0,0.00023581,2]
[386488729,1758318661134,-661.51,0.00023581,2]
[386488730,1758318661144,-685.81,0.00023581,2]
[386488731,1758318661153,-587.45,0.00023581,2]
[386488732,1758318661162,-480.0,0.00023581,2]
[386488733,1758318661171,-480.0,0.00023582,2]
[386488734,1758318661181,-480.0,0.00023582,2]
[386488735,1758318661190,-192.3,0.00023582,2]
[386488736,1758318661200,-480.0,0.00023582,2]
[386488737,1758318661210,-552.91,0.00023582,2]
[386488738,1758318661220,-1682.0,0.00023582,2]
[386488739,1758318661229,-480.0,0.00023582,2]
[386488740,1758318661239,-671.17,0.00023582,2]
[386488741,1758318661249,-480.0,0.00023582,2]
[386488742,1758318661258,-480.0,0.00023582,2]
[386488743,1758318661268,-480.0,0.00023582,2]
[386488744,1758318661280,-1665.18,0.00023582,2]
[386488745,1758318661289,-480.0,0.00023582,2]
[386488746,1758318661367,-479.6,0.00023583,2]
[386488747,1758318661388,-480.0,0.00023583,2]
[386488748,1758318661400,-619.05,0.00023583,2]
[386488749,1758318661410,-480.0,0.00023583,2]
[386488750,1758318661420,-480.0,0.00023583,2]
[386488751,1758318661429,-3891.72,0.00023584,2]
[386488752,1758318661439,-684.87,0.00023585,2]
[386488753,1758318661449,-1773.07,0.00023588,2]
[386488754,1758318661458,-574.86,0.00023588,2]
[386488755,1758318661468,-7422.04,0.00023588,2]
[386488756,1758318661477,-480.0,0.00023588,2]
[386488757,1758318661487,-845.13,0.00023588,2]
[386488758,1758318661496,-480.0,0.0002359,2]
[386488759,1758318661506,-500.0,0.00023596,2]
[386488760,1758318661516,-500.0,0.00023596,2]
[386488761,1758318661525,-150.0,0.0002373,2]
[386488762,1758318661534,-1596.72109002,0.000238,7]
[386488763,1758318661923,-480.0,0.00021114,2]
[386488764,1758318661934,-480.0,0.00021388,2]
[386488765,1758318661944,-480.0,0.00021663,2]
[386488766,1758318661955,-480.0,0.00021937,2]
[386488767,1758318661966,-480.0,0.0002221,2]
[386488768,1758318661976,-480.0,0.00022211,2]
[386488769,1758318661986,-480.0,0.00022484,2]
[386488770,1758318661996,-480.0,0.00022485,2]
[386488771,1758318662006,-480.0,0.00022758,2]
[386488772,1758318662016,-480.0,0.00022759,2]
[386488773,1758318662026,-480.0,0.00023032,2]
[386488774,1758318662037,-480.0,0.00023033,2]
[386488775,1758318662048,-480.0,0.00023306,2]
[386488776,1758318662058,-480.0,0.0002358,2]
[386488777,1758318662069,-3464.00890998,0.000238,7]
[386488778,1758318662078,-360.0,0.0002385,2]
[386488779,1758318662090,-480.0,0.00023854,2]
[386488780,1758318662100,-828.53,0.00023854,2]
[386488781,1758318662110,-910.34,0.00023854,2]
[386488782,1758318662119,-480.0,0.00023854,2]
[386488783,1758318662128,-496.55,0.00023854,2]
[386488784,1758318662139,-480.0,0.00023854,2]
[386488785,1758318662149,-274.18946566,0.00023854,2]
[386488786,1758318662160,-434.60053434,0.00023854,2]
[386488787,1758318662171,-480.0,0.00023854,2]
[386488788,1758318662181,-581.65,0.00023854,2]
[386488789,1758318662191,-2031.76,0.00023854,2]
[386488790,1758318662201,-480.0,0.00023854,2]
[386488791,1758318662212,-480.0,0.00023854,2]
[386488792,1758318662222,-480.0,0.00023855,2]
[386488793,1758318662233,-480.0,0.00023855,2]
[386488794,1758318662242,-402.73,0.00023855,2]
[386488795,1758318662251,-480.0,0.00023855,2]
[386488796,1758318662260,-480.0,0.00023855,2]
[386488797,1758318662269,-480.0,0.00023855,2]
[386488798,1758318662279,-640.26,0.00023855,2]
[386488799,1758318662288,-480.0,0.00023855,2]
[386488800,1758318662297,-480.0,0.00023855,2]
[386488801,1758318662307,-480.0,0.00023855,2]
[386488802,1758318662316,-480.0,0.00023855,2]
[386488803,1758318662329,-480.0,0.00023855,2]
[386488804,1758318662339,-480.0,0.00023855,2]
[386488805,1758318662348,-480.0,0.00023855,2]